Cogmind - Beta 16 @@@ ROGUE MODE // 2025.11.14 @ 18:56:50 Player: Anonymous Bosch Result: Destroyed by G-67 Veteran with Field Laser Performance ------------- Evolutions (6) 3000 Regions Visited (11) 2200 Robots Destroyed (61) 305 Value Destroyed (1428) 1428 Prototype IDs (3) 60 Alien Tech Used (0) 0 Bonus (1514) 1514 TOTAL SCORE: 8507 Bonus ------- Follower Combat Kills 214 Entered DSFs 500 Registered with UFD 300 Met Optimus in HQ 500 Cogmind --------- Core Integrity 0/1150 Matter 77/300 Energy 45/100 System Corruption 5% Temperature Cool (11) Movement Core (100) Ox1 Location -4/Extension Parts ------- > --- POWER (2) -------- (None) > --- PROPULSION (6) --- Flexi-carbon Leg Myomer Leg > --- UTILITY (9) ------ Core Analyzer > --- WEAPON (2) ------- Advanced Plasma Rifle > --- INVENTORY (5) ---- Large Storage Unit Gravity Neutralizer Advanced Shield Generator Phase Cannon Peak State ------------ > --- POWER ------------ (None) > --- PROPULSION ------- Thunder Leg Antigrav System > --- UTILITY ---------- Enhanced Optical Array Improved Sensor Array Improved Signal Interpreter Advanced Target Analyzer Advanced Transmission Jammer Hacking Suite > --- WEAPON ----------- KE Penetrator > --- INVENTORY -------- Large Storage Unit Advanced Shield Generator Advanced Plasma Rifle Phase Cannon [Rating: 48] Favorites ----------- Power Light Nuclear Core Engine Light Ion Engine Power Core Light Nuclear Core Propulsion Airjet Treads Light Treads Leg Flexi-carbon Leg Hover Unit Airjet Flight Unit Flight Unit Utility Targeting Computer Device Sensor Array Storage Small Storage Unit Processor Targeting Computer Hackware Hacking Suite Weapon Advanced Beam Cannon Energy Gun Small Laser Energy Cannon Advanced Beam Cannon Ballistic Gun Assault Rifle Launcher Grenade Launcher Impact Weapon Hammer Build | -11 -10 -10 -9 -9 -9 -9 -6 -6 -5 -4 -4 ------- Run | Yrd Mat Min Mat Sto Rec Scr Fac DSF Fac Fac Ext Slots Evolved 12 | . . . 2 . . . 6 . 2 2 . Power 1 | . . . . . . . 1 . . . . Propulsion 4 | . . . 1 . . . 2 . . 1 . Utility 7 | . . . 1 . . . 3 . 2 1 . Weapon . | . . . . . . . . . . . . Parts Attached 76 | 5 19 1 11 6 . 3 3 3 11 5 9 Power 8 | . 5 . 1 1 . . . . 1 . . Engine 6 | . 5 . . 1 . . . . . . . Core 2 | . . . 1 . . . . . 1 . . Reactor . | . . . . . . . . . . . . Propulsion 22 | 2 5 . 6 1 . . . . 3 1 4 Treads 3 | 2 . . . . . . . . . . 1 Leg 4 | . . . . . . . . . . 1 3 Wheel . | . . . . . . . . . . . . Hover 9 | . 2 . 4 1 . . . . 2 . . Flight 6 | . 3 . 2 . . . . . 1 . . Utility 25 | . 5 . 2 3 . 2 2 2 4 3 2 Device 14 | . 3 . 2 3 . . 1 1 2 1 1 Storage 1 | . . . . . . 1 . . . . . Processor 8 | . 2 . . . . 1 1 1 1 1 1 Hackware 2 | . . . . . . . . . 1 1 . Protection . | . . . . . . . . . . . . Artifact . | . . . . . . . . . . . . Weapon 21 | 3 4 1 2 1 . 1 1 1 3 1 3 Energy Gun 6 | 2 . . . . . . . . 1 1 2 Energy Cannon 4 | . . . 2 . . . 1 . 1 . . Ballistic Gun 6 | 1 3 . . . . 1 . . 1 . . Ballistic Cannon . | . . . . . . . . . . . . Launcher 4 | . 1 1 . . . . . 1 . . 1 Special Weapon . | . . . . . . . . . . . . Impact Weapon 1 | . . . . 1 . . . . . . . Slashing Weapon . | . . . . . . . . . . . . Piercing Weapon . | . . . . . . . . . . . . Special Melee Weapon . | . . . . . . . . . . . . Unidentified Prototypes 3 | . . . 1 1 . . . . . 1 . Parts Lost 32 | . 5 . . 1 . . . 9 7 5 5 Power 3 | . 1 . . . . . . 1 1 . . Propulsion 12 | . 2 . . 1 . . . 3 2 2 2 Utility 11 | . 1 . . . . . . 4 3 2 1 Weapon 6 | . 1 . . . . . . 1 1 1 2 Highest Loss Streak 7 | . 3 . . 1 . . . 7 6 5 3 To Critical Strikes 1 | . 1 . . . . . . . . . . Average Backups 5 | 3 4 5 4 4 5 7 6 6 5 4 5 Power . | 1 . . . . 1 . . . . . . Propulsion . | . . 1 . . . . . . . . . Utility 1 | . 1 1 1 1 1 2 2 3 2 2 3 Weapon 2 | . 1 1 1 2 2 2 3 2 2 2 2 Tool/Special . | . . . . . . . . . . . . Unused Backups 20 | . 7 1 . . . 3 . 4 2 . 3 Power 3 | . 1 . . . . 1 . 1 . . . Propulsion 3 | . 3 . . . . . . . . . . Utility 6 | . 2 . . . . . . . 1 . 3 Weapon 5 | . 1 1 . . . . . 2 1 . . Tool/Special 3 | . . . . . . 2 . 1 . . . Average Slot Usage (%) 80 | . 80 100 99 99 100 98 77 43 35 32 15 Engine 4 | . 9 14 9 . 11 2 . . . . . Core 3 | . . . 1 10 . 8 6 1 3 . . Treads 2 | . 16 . . . . . . . . . . Hover 21 | . 6 28 32 33 33 33 20 7 3 3 . Device 6 | . 9 . 10 10 11 . 12 9 4 6 . Storage 1 | . . . . . . 10 6 3 . . . Processor 17 | . 5 28 22 22 22 22 19 15 10 13 2 Energy Gun 1 | . 11 . . . . . . . 2 . 2 Energy Cannon 5 | . . . 7 11 11 11 4 . . . . Ballistic Gun 6 | . 14 16 6 5 . 8 6 3 . . . Launcher 2 | . 1 11 7 . . . . . . . . Impact Weapon 1 | . . . . 5 11 1 . . . . . Peak Build Rating 48 | 4 11 9 19 23 20 24 33 33 44 48 37 Average Rating 18 | 3 6 9 16 19 19 23 31 17 30 32 17 On Entrance 14 | . 4 9 9 19 19 20 24 33 14 18 10 Avg Prop Armor Cover (%) 24 | 27 28 . 7 . . . . . 13 29 37 Naked Turns 71 | . . . . . . . . . . . 71 Heaviest Build 24 | 3 11 8 12 15 15 19 24 24 12 2 14 Greatest Support 40 | 3 40 14 24 24 24 24 24 24 13 3 40 Greatest Overweight (x) 3 | . . . 3 . . . . 1 1 . . Average Overweight (x) . | . . . . . . . . . . . . Largest Inventory Capacity 8 | 5 5 5 5 5 5 8 8 8 5 5 5 Average Capacity 5 | 5 5 5 5 5 5 7 8 6 5 5 5 Most Carried 8 | 5 5 5 5 5 5 8 8 8 5 5 5 Average Carried 5 | 3 4 5 4 4 4 7 7 6 4 4 4 Final Capacity 8 | 5 5 5 5 5 5 8 8 5 5 5 5 Final Carried 8 | 5 5 5 5 5 5 8 8 5 5 5 4 Class Distribution -------------------- 87% | Mutant 10% | Scout Dominant Class ---------------- Mutant | -10/Materials Mutant | -10/Mines Mutant | -9/Materials Mutant | -9/Storage Mutant | -9/Recycling Mutant | -9/Scraptown Mutant | -6/Factory Mutant | -6/DSF Scout | -5/Factory Scout | -4/Factory Mutant | -4/Extension Resources | -11 -10 -10 -9 -9 -9 -9 -6 -6 -5 -4 -4 ----------- Run | Yrd Mat Min Mat Sto Rec Scr Fac DSF Fac Fac Ext Matter Collected 1504 | 260 477 59 287 171 55 40 . 13 . . 142 Remotely . | . . . . . . . . . . . . Salvage Created 1888 | 106 633 28 652 330 . . . 40 . 99 . Parts 121 | 4 55 5 32 19 . . . 3 . 3 . Haulers Intercepted 2 | . 1 . . 1 . . . . . . . Recyclers Shooed 3 | . 1 . 1 1 . . . . . . . Parts Field Recycled . | . . . . . . . . . . . . Retrieved Matter . | . . . . . . . . . . . . Parts Self-Destructed . | . . . . . . . . . . . . Prevented . | . . . . . . . . . . . . Parts Restored . | . . . . . . . . . . . . Kills | -11 -10 -10 -9 -9 -9 -9 -6 -6 -5 -4 -4 ------- Run | Yrd Mat Min Mat Sto Rec Scr Fac DSF Fac Fac Ext Combat Hostiles Destroyed 40 | . 17 . 13 6 . . . 2 . 2 . Guns 14 | . 12 . . 1 . . . . . 1 . Cannons 10 | . . . 8 2 . . . . . . . AOE 16 | . 5 . 5 3 . . . 2 . 1 . Classes Destroyed 10 | 2 6 . 1 . . . . . . 1 . Worker 3 | . 1 . . . . . . . . 2 . Tunneler 4 | 1 2 1 . . . . . . . . . Hauler 2 | . 1 . . 1 . . . . . . . Recycler 7 | 1 1 . 3 2 . . . . . . . Operator 2 | . 1 . 1 . . . . . . . . Watcher 3 | . 3 . . . . . . . . . . Swarmer 17 | . 8 . 4 3 . . . 2 . . . Grunt 18 | . 9 . 6 3 . . . . . . . Sentry 3 | . . . 3 . . . . . . . . Hunter 2 | . . . . . . . . . . 2 . Best Kill Streak 4 | 2 4 1 4 3 . . . 2 . 4 . Combat Bots Only 4 | . 4 . 4 3 . . . 2 . 2 . Max Kills in Single Turn 3 | 1 2 1 2 3 . . . 2 . 3 . Gunslinging . | . . . . . . . . . . . . Exploded 3 | . 2 . 2 3 . . . 2 . 1 . Melee . | . . . . . . . . . . . . Uniques/NPCs Destroyed . | . . . . . . . . . . . . Combat | -11 -10 -10 -9 -9 -9 -9 -6 -6 -5 -4 -4 -------- Run | Yrd Mat Min Mat Sto Rec Scr Fac DSF Fac Fac Ext Hostile Shots Fired 524 | . 88 2 27 16 . . . 81 154 102 54 Missed 209 | . 20 1 12 5 . . . 40 78 33 20 Hits 315 | . 68 1 15 11 . . . 41 76 69 34 Projectile 315 | . 68 1 15 11 . . . 41 76 69 34 Critical Strikes 16 | . 3 . . . . . . . 2 10 1 Part Disruptions 1 | . . . . . . . . 1 . . . Damage Taken 5648 | . 742 14 212 103 . . . 916 1458 1330 873 Core 2847 | . 207 14 26 28 . . . 464 948 883 277 Absorbed by Shields 24 | . . . . . . . . 24 . . . Regen/Repaired (Parts) 182 | . . . . . . 182 . . . . . Core Remaining (%) 49 | 100 . 11 . . . 86 . 45 5 . . Volleys Fired 165 | 10 69 4 45 17 . . . 2 1 11 6 Largest 2 | 2 2 1 2 2 . . . 1 1 1 1 Hottest 98 | 70 70 20 98 88 . . . 30 85 88 88 Shots Fired 252 | 17 115 4 65 30 . . . 2 1 11 7 Gun 177 | 17 106 4 23 13 . . . . . 11 3 Cannon 53 | . . . 36 16 . . . . 1 . . Launcher 22 | . 9 . 6 1 . . . 2 . . 4 Special . | . . . . . . . . . . . . Kinetic 112 | 10 52 4 23 13 . . . . . 10 . Thermal 118 | 7 54 . 36 16 . . . . 1 1 3 Explosive 22 | . 9 . 6 1 . . . 2 . . 4 Electromagnetic . | . . . . . . . . . . . . Robot Hit Streak 11 | 4 11 5 10 9 . . . 1 . 6 7 Robot Miss Streak 3 | 2 2 . 3 2 . . . 1 . . 2 Penetration Max . | . . . . . . . . . . . . Secondary Targets 2 | . 2 . . . . . . . . . . Max Gunslinging Chain 1 | . 1 . . . . . . . . . . Shots Hit Robots 145 | 11 75 4 29 15 . . . 1 . 5 5 Core Hits 95 | 3 45 2 20 10 . . . 2 1 7 5 Critical Kills . | . . . . . . . . . . . . Critical Parts Destroyed 1 | 1 . . . . . . . . . . . Critical Strikes 3 | 3 . . . . . . . . . . . Burn 2 | 2 . . . . . . . . . . . Destroy 1 | 1 . . . . . . . . . . . Melee Attacks 19 | . . . . 19 . . . . . . . Impact 19 | . . . . 19 . . . . . . . Slashing . | . . . . . . . . . . . . Piercing . | . . . . . . . . . . . . Sneak Attacks . | . . . . . . . . . . . . Combat Hostiles . | . . . . . . . . . . . . Follow-up Attacks . | . . . . . . . . . . . . Damage Inflicted 3292 | 113 1053 48 791 401 . . . 103 17 581 185 Guns 1311 | 113 740 48 149 79 . . . . . 109 73 Cannons 510 | . . . 347 163 . . . . . . . Explosions 1450 | . 313 . 295 159 . . . 103 . 472 108 Melee . | . . . . . . . . . . . . Ramming 21 | . . . . . . . . . 17 . 4 Kinetic 656 | 49 253 48 149 79 . . . . . 78 . Thermal 1165 | 64 487 . 347 163 . . . . . 31 73 Explosive 1450 | . 313 . 295 159 . . . 103 . 472 108 Electromagnetic . | . . . . . . . . . . . . Impact . | . . . . . . . . . . . . Slashing . | . . . . . . . . . . . . Piercing . | . . . . . . . . . . . . Highest Corruption 6 | . 1 1 . . . . . 2 6 5 5 Average Corruption 2 | . 1 1 . . . . . 1 1 3 5 Corruption Purged . | . . . . . . . . . . . . Corruption Blocked . | . . . . . . . . . . . . Effects 12 | . 2 3 . . . . . . 1 2 4 Message Errors 5 | . 1 1 . . . . . . 1 1 1 Matter Fused 2 | . . 1 . . . . . . . . 1 Heat Flow Errors 1 | . 1 . . . . . . . . . . Energy Discharges 1 | . . 1 . . . . . . . . . Data Loss (minor) 1 | . . . . . . . . . . . 1 Misfires 1 | . . . . . . . . . . . 1 Alerts 1 | . . . . . . . . . . 1 . Overload Shots . | . . . . . . . . . . . . Overflow Damage 56 | . 9 . 1 11 . . . . . 35 . Projectiles 11 | . . . . 11 . . . . . . . Explosions 45 | . 9 . 1 . . . . . . 35 . Melee . | . . . . . . . . . . . . Knockbacks . | . . . . . . . . . . . . Impact . | . . . . . . . . . . . . Kinetic . | . . . . . . . . . . . . Secondary . | . . . . . . . . . . . . Self-Inflicted Damage 166 | . 46 . 32 . . . . 8 8 . 72 Shots 5 | . 2 . 1 . . . . 1 . . 1 Rammed 4 | . . . . . . . . . 4 . . Targets Rammed 5 | . . . . . . . . . 4 . 1 Kicked 1 | . . . . . . . . . . . 1 Crushed . | . . . . . . . . . . . . Highest Temperature 290 | 40 290 . 174 138 . . . . 4 2 2 Average Temperature 67 | 19 89 . 58 46 . . . . 3 1 1 Received Heat Transfer 744 | . 318 9 54 24 . . . . 183 12 144 Effects 2 | . 2 . . . . . . . . . . Interference 2 | . 2 . . . . . . . . . . Siege Activations . | . . . . . . . . . . . . Martial Activations . | . . . . . . . . . . . . Shielding Activations . | . . . . . . . . . . . . Robots Disrupted . | . . . . . . . . . . . . Combat Hostiles . | . . . . . . . . . . . . Robots Corrupted . | . . . . . . . . . . . . Combat Hostiles . | . . . . . . . . . . . . Parts Fried . | . . . . . . . . . . . . Impact Corruptions . | . . . . . . . . . . . . Robots Melted . | . . . . . . . . . . . . Combat Hostiles . | . . . . . . . . . . . . Parts Melted 3 | . 3 . . . . . . . . . . Heat Transferred 2710 | 333 1265 . 629 296 . . . . . 50 137 Parts Sabotaged . | . . . . . . . . . . . . Parts Stolen . | . . . . . . . . . . . . Parts Stripped . | . . . . . . . . . . . . Power Chain Reactions . | . . . . . . . . . . . . Alert | -11 -10 -10 -9 -9 -9 -9 -6 -6 -5 -4 -4 ------- Run | Yrd Mat Min Mat Sto Rec Scr Fac DSF Fac Fac Ext Maximum Alert Level 1 | . 1 . 1 . . . . . 1 . . Low Security (%) 85 | 100 43 100 71 100 100 . 100 100 90 100 100 Level 1 14 | . 56 . 28 . . . . . 9 . . Level 2 . | . . . . . . . . . . . . Level 3 . | . . . . . . . . . . . . Level 4 . | . . . . . . . . . . . . Level 5 . | . . . . . . . . . . . . High Security . | . . . . . . . . . . . . Max Security . | . . . . . . . . . . . . Peak Influence 383 | 5 380 113 383 148 27 . . 75 276 135 146 Initial 148 | . 3 113 . 148 27 . . 3 39 135 29 Average 75 | 1 196 38 99 52 4 . . 19 41 65 41 Influence Increases 2530 | 10 642 47 527 313 5 . 5 135 411 154 281 Destroy 0b10 Robot/C 900 | . 340 40 260 120 . . . 40 . 40 60 Destroy 0b10 Robot/NC 110 | 10 45 5 20 15 . . . . . 10 5 Destroy Leader 180 | . 68 . 60 22 . . . 10 . 10 10 Allied During Kill 17 | . . 2 . . . . . . . . 15 Trap Triggered on 0b10 30 | . . . . . . . . 30 . . . Successful Hack 80 | . 40 . 4 5 5 . 5 . 21 . . Disable Machine 210 | . 30 . 45 60 . . . . 15 30 30 Destroy Structure 268 | . 59 . 33 16 . . . 10 . 64 86 Partial Spotted 90 | . . . 45 15 . . . . 30 . . Lose Combat Pursuer 645 | . 60 . 60 60 . . . 45 345 . 75 Influence Decreases 2419 | 5 356 338 174 595 76 . . 65 210 370 230 Entered New Map 639 | . 2 178 . 205 44 . . 2 36 141 31 Time Decay 1453 | 5 304 160 174 360 32 . . . 129 189 100 Lost Part 258 | . 50 . . 10 . . . 63 45 40 50 Lost Ally 69 | . . . . 20 . . . . . . 49 Squads Dispatched 11 | . 2 . 3 2 . . . . 2 1 1 Investigation 3 | . 2 . . 1 . . . . . . . Extermination 3 | . . . . . . . . . 2 1 . Reinforcement 5 | . . . 3 1 . . . . . . 1 Assault . | . . . . . . . . . . . . Garrison . | . . . . . . . . . . . . Intercept . | . . . . . . . . . . . . Searches Triggered . | . . . . . . . . . . . . Construction Impeded . | . . . . . . . . . . . . Haulers Reinforced . | . . . . . . . . . . . . Active Scanning Responses . | . . . . . . . . . . . . Cargo Convoy Interrupts . | . . . . . . . . . . . . Stealth | -11 -10 -10 -9 -9 -9 -9 -6 -6 -5 -4 -4 --------- Run | Yrd Mat Min Mat Sto Rec Scr Fac DSF Fac Fac Ext Distress Signals 10 | . 3 . 3 3 . . . . . . 1 Communications Jammed . | . . . . . . . . . . . . Distress Signals . | . . . . . . . . . . . . Times Spotted 132 | . 25 2 27 10 . . . 13 35 9 11 Peak Tracking Total 20 | . 7 2 5 3 . . . 5 20 7 7 Tactical Retreats 19 | . 2 . 1 2 . . . 6 6 . 2 ECM-based Alert Blocks 4 | . . . . . . . . 4 . . . Traps | -11 -10 -10 -9 -9 -9 -9 -6 -6 -5 -4 -4 ------- Run | Yrd Mat Min Mat Sto Rec Scr Fac DSF Fac Fac Ext Traps Triggered 8 | . 2 . . . . . . 2 1 1 2 Indirectly . | . . . . . . . . . . . . Trap Hack Attempts . | . . . . . . . . . . . . Triggered . | . . . . . . . . . . . . Disarmed . | . . . . . . . . . . . . Reprogrammed . | . . . . . . . . . . . . Reused 3 | . . . . . . . . 3 . . . Traps Extracted . | . . . . . . . . . . . . Installed 10 | . . 3 . . . . . 7 . . . Triggered 3 | . . . . . . . . 3 . . . Machines | -11 -10 -10 -9 -9 -9 -9 -6 -6 -5 -4 -4 ---------- Run | Yrd Mat Min Mat Sto Rec Scr Fac DSF Fac Fac Ext Machines Disabled 15 | . 3 . 3 4 . . . . 1 2 2 Max in Single Turn 2 | . 1 . 1 1 . . . . 1 2 2 Garrison Access 3 | . . . . 1 . . . . 1 1 . Machines Repaired . | . . . . . . . . . . . . Machines Dismantled . | . . . . . . . . . . . . Machines Sabotaged . | . . . . . . . . . . . . Overloaded Fab Kills . | . . . . . . . . . . . . Hacking | -11 -10 -10 -9 -9 -9 -9 -6 -6 -5 -4 -4 --------- Run | Yrd Mat Min Mat Sto Rec Scr Fac DSF Fac Fac Ext Machines Accessed 40 | . 9 . 2 6 4 7 3 . 4 3 2 Terminals 26 | . 8 . 2 4 4 . 2 . 3 1 2 Fabricators 2 | . . . . . . . 1 . . 1 . Repair Stations . | . . . . . . . . . . . . Recycling Units 2 | . 1 . . 1 . . . . . . . Scanalyzers . | . . . . . . . . . . . . Garrison Access 3 | . . . . 1 . . . . 1 1 . Total Hacks 116 | . 23 . 6 15 8 35 6 . 14 6 3 Successful 73 | . 10 . 3 6 4 35 2 . 8 3 2 Failed 42 | . 13 . 3 9 4 . 4 . 5 3 1 Catastrophic 7 | . 5 . . . . . 1 . . 1 . Database Lockouts 1 | . . . . . . . . . 1 . . Manual 55 | . 20 . 6 8 8 . 2 . 11 . . Terminals 66 | . 22 . 6 10 8 . 4 . 12 1 3 Fabricators 5 | . . . . . . . 2 . . 3 . Repair Stations . | . . . . . . . . . . . . Recycling Units 3 | . 1 . . 2 . . . . . . . Scanalyzers . | . . . . . . . . . . . . Garrison Access 7 | . . . . 3 . . . . 2 2 . Terminal Hacks 51 | . 4 . 1 2 2 35 1 . 3 1 2 Record 29 | . . . . . . 29 . . . . . Part Schematic 2 | . . . . . 1 . . . 1 . . Robot Analysis 6 | . . . . . . 6 . . . . . Open Door 4 | . . . . 1 . . . . . 1 2 Open DSF 1 | . . . . . . . 1 . . . . Branch Access Points 4 | . 1 . . 1 1 . . . 1 . . Terminal Index 2 | . 1 . 1 . . . . . . . . Alert Level 2 | . 1 . . . . . . . 1 . . Locate Traps 1 | . 1 . . . . . . . . . . Fabricator Hacks 2 | . . . . . . . 1 . . 1 . Load Schematic 2 | . . . . . . . 1 . . 1 . Repair Station Hacks . | . . . . . . . . . . . . Recycling Unit Hacks 3 | . 1 . . 2 . . . . . . . Report Inventory 2 | . 1 . . 1 . . . . . . . Retrieve Components 1 | . . . . 1 . . . . . . . Scanalyzer . | . . . . . . . . . . . . Garrison Access Hacks 3 | . . . . 1 . . . . 1 1 . Seal Access 3 | . . . . 1 . . . . 1 1 . Unauthorized Hacks 14 | . 5 . 2 1 2 . . . 4 . . Terminals 14 | . 5 . 2 1 2 . . . 4 . . Botnet 12 | . 5 . 2 1 2 . . . 2 . . Skim 2 | . . . . . . . . . 2 . . Fabricators . | . . . . . . . . . . . . Repair Stations . | . . . . . . . . . . . . Recycling Units . | . . . . . . . . . . . . Scanalyzers . | . . . . . . . . . . . . Garrison Access . | . . . . . . . . . . . . Data Cores Recovered 1 | . 1 . . . . . . . . . . Used 1 | . 1 . . . . . . . . . . Hacking Detections 29 | . 9 . 2 5 4 . 2 . 4 2 1 Full Trace Events 4 | . 1 . 1 1 1 . . . . . . Feedback Events . | . . . . . . . . . . . . Feedback Blocked . | . . . . . . . . . . . . Robot Schematics Acquired . | . . . . . . . . . . . . Robots Built . | . . . . . . . . . . . . Authchips . | . . . . . . . . . . . . Time . | . . . . . . . . . . . . Total Robot Build Rating . | . . . . . . . . . . . . Part Schematics Acquired 2 | . . . . . 1 . . . 1 . . Parts Built . | . . . . . . . . . . . . Authchips . | . . . . . . . . . . . . Time . | . . . . . . . . . . . . Total Part Build Rating . | . . . . . . . . . . . . Part Studies Acquired . | . . . . . . . . . . . . Parts Repaired . | . . . . . . . . . . . . Time . | . . . . . . . . . . . . Parts Recycled . | . . . . . . . . . . . . Recycled Matter . | . . . . . . . . . . . . Retrieved Matter . | . . . . . . . . . . . . Retrieved Components 9 | . . . . 9 . . . . . . . Parts Scanalyzed . | . . . . . . . . . . . . Part Schematics Acquired . | . . . . . . . . . . . . Parts Damaged . | . . . . . . . . . . . . Bothacking | -11 -10 -10 -9 -9 -9 -9 -6 -6 -5 -4 -4 ------------ Run | Yrd Mat Min Mat Sto Rec Scr Fac DSF Fac Fac Ext Used RIF Installer . | . . . . . . . . . . . . Robots Hacked . | . . . . . . . . . . . . Non-combat . | . . . . . . . . . . . . Combat . | . . . . . . . . . . . . Robot Hacks Applied . | . . . . . . . . . . . . Relay Couplers Released . | . . . . . . . . . . . . Fabnet Peak Effective % . | . . . . . . . . . . . . Robots Rewired . | . . . . . . . . . . . . Allies Hacked . | . . . . . . . . . . . . Hacks Repelled . | . . . . . . . . . . . . Allies | -11 -10 -10 -9 -9 -9 -9 -6 -6 -5 -4 -4 -------- Run | Yrd Mat Min Mat Sto Rec Scr Fac DSF Fac Fac Ext Total Allies 4 | . . 1 . . . . . . . . 3 Largest Group 2 | . . 1 . . . . . . . . 2 Highest-Rated Group 97 | . . 31 . . . . . . . . 97 Highest-Rated Ally 51 | . . 31 . . . . . . . . 51 Total Orders 1 | . . . . 1 . . . . . . . EXPLORE 1 | . . . . 1 . . . . . . . Ally Attacks 17 | . . 4 . . . . . . . . 13 Total Damage 472 | . . 83 . . . . . . . . 389 Kills 6 | . . 2 . . . . . . . . 4 Allies Corrupted . | . . . . . . . . . . . . Allies Melted . | . . . . . . . . . . . . Intel | -11 -10 -10 -9 -9 -9 -9 -6 -6 -5 -4 -4 ------- Run | Yrd Mat Min Mat Sto Rec Scr Fac DSF Fac Fac Ext Active Infowar (turns) 4035 | . 550 . 1015 940 245 16 197 130 479 459 4 Optics 970 | . . . . . . . . 28 479 459 4 Sensors 2695 | . . . 769 618 245 16 197 102 403 345 . IFF 39 | . . . . . . . . 22 17 . . Terrain 631 | . 199 . 110 322 . . . . . . . Seismic 487 | . 351 . 136 . . . . . . . . Jamming 6 | . . . . . . . . . . 6 . ECM 49 | . . . . . . . 1 48 . . . Robot Analysis Total 6 | . . . . . . 6 . . . . . Derelict Logs Recovered 1 | . . 1 . . . . . . . . . Drone Launches 2 | . . . . 2 . . . . . . . Drone Recoveries . | . . . . . . . . . . . . Exploration | -11 -10 -10 -9 -9 -9 -9 -6 -6 -5 -4 -4 ------------- Run | Yrd Mat Min Mat Sto Rec Scr Fac DSF Fac Fac Ext Turns Passed 6201 | 75 811 529 1016 1007 245 939 197 170 479 459 274 Spaces Moved 6609 | 65 773 803 647 333 358 1764 213 240 708 424 281 Core 1293 | 65 275 . 1 . . . . 100 211 424 217 Treads 29 | . 29 . . . . . . . . . . Legs 64 | . . . . . . . . . . . 64 Wheels . | . . . . . . . . . . . . Hover 4784 | . 286 803 646 333 358 1764 213 140 241 . . Flight 439 | . 183 . . . . . . . 256 . . Fastest Speed 37 | 50 37 56 52 52 52 52 52 50 40 50 50 Average Speed 53 | 50 53 56 52 52 52 52 52 53 55 50 65 Slowest Speed 200 | 50 160 56 200 52 52 52 52 116 120 50 120 Overloaded Moves . | . . . . . . . . . . . . Propulsion Burnouts . | . . . . . . . . . . . . Robots Hopped 10 | . 4 . . . . . . . 6 . . Potential Cave-ins 2 | . . . . 2 . . . . . . . Cave-ins Triggered . | . . . . . . . . . . . . Exploration Rate (%) 50 | 3 92 98 37 48 71 93 6 94 21 16 27 Regions Visited 11 Branch Regions 5 Pre-discovered Areas . | . . . . . . . . . . . . Known Exits Taken 9 | . 1 1 1 1 1 1 1 . 1 1 . Unknown Exits Taken 1 | 1 . . . . . . . . . . . Scrap Searched 7 | . . 3 . . . 4 . . . . . Spaces Dug 19 | . . . 8 11 . . . . . . . Terrain Destroyed 237 | . 56 . 37 16 . . . 11 . 47 70 Melee 11 | . . . . 11 . . . . . . . Projectile 4 | . . . . . . . . . . 4 . AOE 222 | . 56 . 37 5 . . . 11 . 43 70 Terrain Rammed . | . . . . . . . . . . . . Walls Destroyed . | . . . . . . . . . . . . Machines Disabled . | . . . . . . . . . . . . Actions | -11 -10 -10 -9 -9 -9 -9 -6 -6 -5 -4 -4 --------- Run | Yrd Mat Min Mat Sto Rec Scr Fac DSF Fac Fac Ext Total 8974 | 91 1064 877 1257 1099 416 1787 299 284 781 658 361 Wait 1883 | 3 141 65 531 707 57 . 78 . 53 210 38 Move 6578 | 64 764 802 646 332 357 1763 212 239 695 423 281 Hop 10 | . 4 . . . . . . . 6 . . Pick Up 74 | 9 22 1 6 2 1 12 4 10 5 2 . Fast Attach 35 | . 5 . 5 3 . . . 1 7 5 9 Attach 37 | 4 16 . 2 1 . 1 4 2 3 3 1 Detach 11 | . 6 . . 1 . . . 1 1 2 . Swap 48 | 1 18 1 11 12 . 3 . . 2 . . Drop 64 | . 19 1 11 5 1 8 1 11 4 2 1 Fire 165 | 10 69 4 45 17 . . . 2 1 11 6 Melee 19 | . . . . 19 . . . . . . . Ram 4 | . . . . . . . . . 4 . . Kick 1 | . . . . . . . . . . . 1 Crush . | . . . . . . . . . . . . Escape Stasis 26 | . . . . . . . . 11 . . 15 Rewire 9 | . . . . . . . . . . . 9 Trap 10 | . . 3 . . . . . 7 . . . Miscellaneous . | . . . . . . . . . . . . Route ------- -11/Scrapyard -10/Materials (discovered 4 exits: *Mat x3 / *Min) -10/Mines (discovered 3 exits: *Mat x2 / *Sub) -9/Materials (discovered 2 exits: *Mat / *Sto) -9/Storage -9/Recycling -9/Scraptown (discovered 2 exits: *Fac x2) -6/Factory -6/DSF -5/Factory (discovered 3 exits: *Fac / Upp x2) -4/Factory -4/Extension History --------- Turn | Location | Event 4 | -11/Scrapyard | Discovered new exit (range 14) 76 | -11/Scrapyard | Entered Materials 189 | -10/Materials | Discovered new exit (range 4) 307 | -10/Materials | Build established: Mutant 420 | -10/Materials | Identified exit to Mines 510 | -10/Materials | Core integrity fell below 50% 554 | -10/Materials | Core integrity fell below 20% 576 | -10/Materials | Lost 3 parts (1p1n1w) 666 | -10/Materials | Discovered new exit (range 16) 823 | -10/Materials | Discovered new exit (range 11) 836 | -10/Materials | Identified exit to Materials 887 | -10/Materials | Entered Mines 890 | -10/Mines | Received a Mining Laser from a helpful Derelict 896 | -10/Mines | YI-UF0 nonchalantly dropped a Grenade Launcher on the ground 1047 | -10/Mines | Discovered exit to Materials (range 3) 1065 | -10/Mines | Learned Materials emergency access door positions 1117 | -10/Mines | Discovered new exit (range 8) 1120 | -10/Mines | Identified exit to Subcaves 1133 | -10/Mines | Found a hidden stash of uninstalled traps 1201 | -10/Mines | Discovered exit to Materials (range 5) 1416 | -10/Mines | Entered Materials 1416 | -9/Materials | Evolved 2 slots: Propulsion x1, Utility x1 2328 | -9/Materials | Discovered new exit (range 8) 2331 | -9/Materials | Identified exit to Materials 2425 | -9/Materials | Discovered new exit (range 14) 2432 | -9/Materials | Identified exit to Storage 2432 | -9/Materials | Entered Storage 2918 | -9/Storage | Identified exit to Recycling 3426 | -9/Storage | Used back door to open Recycling access 3439 | -9/Storage | Entered Recycling 3671 | -9/Recycling | Scanned before Scraplab entrance 3683 | -9/Recycling | Discovered new exit (range 3) 3683 | -9/Recycling | Identified exit to Scraptown 3684 | -9/Recycling | Entered Scraptown 3827 | -9/Scraptown | Discovered new exit (range 5) 3829 | -9/Scraptown | Identified exit to Factory 3852 | -9/Scraptown | Visited Red Mages 3871 | -9/Scraptown | Visited CR-KLE's Repair Center 3877 | -9/Scraptown | CR-KLE repaired 5 parts 3899 | -9/Scraptown | Visited Cave Peace 3914 | -9/Scraptown | Visited Cyclists 4092 | -9/Scraptown | Visited Junk Repository 4126 | -9/Scraptown | Visited Assassins FH 4190 | -9/Scraptown | Visited UFD Registry 4190 | -9/Scraptown | Registered with UFD as "Deathmaster" 4209 | -9/Scraptown | Entered Cyclist Reading Room 4238 | -9/Scraptown | Visited Scrapoid Research Area 4256 | -9/Scraptown | Visited Junk Repository 4266 | -9/Scraptown | Visited Abandonware Association 4269 | -9/Scraptown | Learned abandonware demo "OVRCLOCK.EXE" 4273 | -9/Scraptown | Learned abandonware demo "REVENGE.EXE" 4273 | -9/Scraptown | Learned abandonware demo "KABOOM.EXE" 4287 | -9/Scraptown | Visited Scrapoid Pod Storage 4329 | -9/Scraptown | Discovered exit to Factory (range 5) 4346 | -9/Scraptown | Visited Botcube Research 4356 | -9/Scraptown | Visited Derelict Rescue Squad 4360 | -9/Scraptown | Found DRS Beacon 4371 | -9/Scraptown | Visited Analyses Database 4381 | -9/Scraptown | Visited Science Testing Area 4468 | -9/Scraptown | Visited Chapter 10 4487 | -9/Scraptown | Visited LU-1G1's Boring Crew 4588 | -9/Scraptown | Met Optimus 4588 | -9/Scraptown | Accepted into 0bPrime 4623 | -9/Scraptown | Entered Factory 4623 | -6/Factory | Evolved 6 slots: Power x1, Propulsion x2, Utility x3 4820 | -6/Factory | Identified exit to DSF 4820 | -6/Factory | Entered DSF 4843 | -6/DSF | Additional patrols routed to DSF 4844 | -6/DSF | Discovered new exit (range 15) 4895 | -6/DSF | Identified exit to Factory 4978 | -6/DSF | Lost 7 parts (2n4u1w) 4984 | -6/DSF | Core integrity fell below 50% 4990 | -6/DSF | Entered Factory 4990 | -5/Factory | Evolved 2 slots: Utility x2 5153 | -5/Factory | Identified exit to Upper Caves 5153 | -5/Factory | Central database locked down 5390 | -5/Factory | Core integrity fell below 50% 5419 | -5/Factory | Lost 6 parts (2n3u1w) 5440 | -5/Factory | Discovered new exit (range 15) 5455 | -5/Factory | Core integrity fell below 20% 5469 | -5/Factory | Identified exit to Factory 5469 | -5/Factory | Entered another Factory area 5469 | -4/Factory | Evolved 2 slots: Propulsion x1, Utility x1 5727 | -4/Factory | Build established: Scout 5845 | -4/Factory | Lost 5 parts (2n2u1w) 5874 | -4/Factory | Core integrity fell below 50% 5924 | -4/Factory | Discovered new exit (range 9) 5927 | -4/Factory | Identified exit to Extension 5928 | -4/Factory | Entered Extension 5947 | -4/Extension | Rescued a captive Derelict 6040 | -4/Extension | Core integrity fell below 20% 6162 | -4/Extension | Rescued a captive Derelict 6162 | -4/Extension | Rescued a captive Derelict 6181 | -4/Extension | Lost 3 parts (2n1w) 6202 | -4/Extension | Destroyed by G-67 Veteran with Field Laser Last Messages --------------- you sent by Warlord?" 06179_ HV Slug penetrates G-67 Veteran. 06179_ G-67 Veteran suffers critical hit (Destroy). 06179_ G-67 Veteran destroyed. 06179_ HV Slug penetrates Wall. 06181_ R-10 Processor collects Flexi-carbon Leg. 06184_ Slug penetrates 46-TIY(g). 06186_ HV Slug penetrates Wall. 06186_ HV Slug penetrates Y-64 Sentinel. 06186_ Y-64 Sentinel destroyed. 06189_ G-67 Veteran suffers critical hit (Burn). 06192_ G-67 Veteran destroyed. 06193_ 46-TIY(g) destroyed. 06196_ U-05 Engineer suffers critical hit (Destroy). 06196_ U-05 Engineer destroyed. 06198_ Slug penetrates MP-LH9(h). 06198_ MP-LH9(h) destroyed. 06199_ Acquired 61 matter. Map ----- +----------------------------------------------------+ | | | | | | | | | | | | | | | | | | | | | | | ?????????????????????????????????????????????????? | | ?????????????????????????????????????????????????? | | ????########?????????????????????????????????????? | | ????# * ###########???????????????????????????? | | ????# /+ #???????????????????????????? | | ##### * ###### #???????????????????????????? | | ?+ #????# #???????????????????????????? | | #??# #????# #???????????????????????????? | | ##?# = #????# #???????????????????????????? | | ######""####### ########????????????????????? | | # #%Y%*!#####????????????????? | | ###### ! # %g= #????????????????? | | ###????# """" # ###g! ### #????????????????? | | ???????# ""T"" #######%###????????????????????? | | ???????# ????#T @!#?????????????????????? | | ??????? ! ????## ##?????????????????????? | | ???????# ?????# #??????????????????????? | | ???????#"#########?????####??????????????????????? | | ???????##????????????????????????????????????????? | | ?????????????????????????????????????????????????? | | ?????????????????????????????????????????????????? | | ?????????????????????????????????????????????????? | | ?????????????????????????????????????????????????? | | ?????????????????????????????????????????????????? | | ?????????????????????????????????????????????????? | | ?????????????????????????????????????????????????? | | ?????????????????????????????????????????????????? | | ?????????????????????????????????????????????????? | | ?????????????????????????????????????????????????? | | ?????????????????????????????????????????????????? | | ?????????????????????????????????????????????????? | | ?????????????????????????????????????????????????? | | ?????????????????????????????????????????????????? | | ?????????????????????????????????????????????????? | | ?????????????????????????????????????????????????? | | ?????????????????????????????????????????????????? | | ?????????????????????????????????????????????????? | | ?????????????????????????????????????????????????? | | ?????????????????????????????????????????????????? | +----------------------------------------------------+ Best States ------------- Heat Dissipation 62 Energy Generation 15 Energy Capacity 280 Matter Stores 300 Matter Capacity 300 Sight Range 22 Robot Scan Range 16 Terrain Scan Range 16 Terrain Scan Density 10 ECM Strength 1 Jamming Range 16 Evasion (%) 62 Targeting Accuracy 5 Target Analysis 8 Core Analysis 6 Recoil Reduction 2 Offensive Hacking 10 Item Schematics ----------------- Imp. Hover Unit | -9/Recycling | Hacked Cmb. Gravmag System | -5/Factory | Hacked Robot Schematics ------------------ None Fabricated ------------ Nothing Repaired ---------- Nothing Studied --------- None Alien Tech Used ----------------- None Achievements -------------- None Challenges ------------ None Game ------ Seed WeaponDecoderLoader Manual? 0 Play Time 01:55:07 Cumulative 47.9 hours Start 2025.11.11 @ 15:08:38 End 2025.11.14 @ 18:56:50 Sessions 11 Manual Loads 0 Difficulty Rogue Special Mode None Game No. 25 Rogue 25 Adventurer 0 Explorer 0 Win Type - Total 0 Types 0/0/0/0/0/0/0/0/0/0 Lore% 38 Gallery% 35 Achievement% 32 Wizard Run 0 Options --------- Layout 1 ASCII 0 Keyboard 0 Movement Numpad Keybinds 0 Fullscreen 2 Font 24/Smallcaps Map View 50x35 Zoom Use 0% Tactical HUD 1 Map Filters NONE Filters NONE Steam 1 RUN: 71e9896d-ee66-4e30-9d0c-a3231a727cee